[Event "Titled Tuesday Blitz July 25 Early 2023"]
[White "Yaran, Siar"]
[Black "Bacrot, Etienne"]
[WhiteFideId "6323006"]
[BlackFideId "605506"]
[WhiteElo "2638"]
[BlackElo "2874"]
[Result "0-1"]
[Round "9"]
[TimeControl "180+2"]
[Date "2023.07.25"]
[WhiteClock "0:00:05"]
[BlackClock "0:00:06"]
[Board "22"]

1. d4 {[%clk 0:03:00]}  d5 {[%clk 0:02:57]} 2. c4 {[%clk 0:03:01]}  c6 {[%clk 0:02:57]} 3. Nc3 {[%clk 0:02:58]}  Nf6 {[%clk 0:02:57]} 4. Nf3 {[%clk 0:02:59]}  dxc4 {[%clk 0:02:56]} 5. a4 {[%clk 0:02:58]}  Bf5 {[%clk 0:02:56]} 6. Ne5 {[%clk 0:02:55]}  Nbd7 {[%clk 0:02:55]} 7. Nxc4 {[%clk 0:02:55]}  Qc7 {[%clk 0:02:56]} 8. g3 {[%clk 0:02:55]}  e5 {[%clk 0:02:55]} 9. dxe5 {[%clk 0:02:54]}  Nxe5 {[%clk 0:02:56]} 10. Bf4 {[%clk 0:02:53]}  Nfd7 {[%clk 0:02:56]} 11. Bg2 {[%clk 0:02:23]}  g5 {[%clk 0:02:56]} 12. Nxe5 {[%clk 0:02:18]}  gxf4 {[%clk 0:02:56]} 13. Nxd7 {[%clk 0:02:17]}  Bxd7 {[%clk 0:02:55]} 14. Qd4 {[%clk 0:02:05]}  Rg8 {[%clk 0:02:55]} 15. O-O {[%clk 0:02:05]}  Be7 {[%clk 0:02:46]} 16. Rfd1 {[%clk 0:02:00]}  Be6 {[%clk 0:02:41]} 17. Rac1 {[%clk 0:01:56]}  fxg3 {[%clk 0:02:36]} 18. hxg3 {[%clk 0:01:56]}  Qb6 {[%clk 0:02:35]} 19. Ne4 {[%clk 0:01:09]}  Qxd4 {[%clk 0:01:53]} 20. Rxd4 {[%clk 0:01:10]}  Rd8 {[%clk 0:01:52]} 21. Rcd1 {[%clk 0:01:08]}  Rxd4 {[%clk 0:01:52]} 22. Rxd4 {[%clk 0:01:09]}  a5 {[%clk 0:01:52]} 23. Nd6+ {[%clk 0:01:04]}  Bxd6 {[%clk 0:01:52]} 24. Rxd6 {[%clk 0:01:05]}  Ke7 {[%clk 0:01:53]} 25. Rd4 {[%clk 0:01:04]}  Rg5 {[%clk 0:01:52]} 26. Be4 {[%clk 0:00:59]}  h5 {[%clk 0:01:47]} 27. Bf3 {[%clk 0:00:53]}  Bg4 {[%clk 0:01:14]} 28. Kg2 {[%clk 0:00:49]}  Ke6 {[%clk 0:00:52]} 29. b4 {[%clk 0:00:30]}  Bxf3+ {[%clk 0:00:23]} 30. Kxf3 {[%clk 0:00:28]}  c5 {[%clk 0:00:23]} 31. bxc5 {[%clk 0:00:26]}  Rxc5 {[%clk 0:00:24]} 32. e4 {[%clk 0:00:22]}  Rc3+ {[%clk 0:00:20]} 33. Kf4 {[%clk 0:00:21]}  b6 {[%clk 0:00:19]} 34. Rd5 {[%clk 0:00:16]}  Rb3 {[%clk 0:00:18]} 35. Rxh5 {[%clk 0:00:16]}  Rb4 {[%clk 0:00:19]} 36. Rh6+ {[%clk 0:00:13]}  f6 {[%clk 0:00:19]} 37. g4 {[%clk 0:00:14]}  Ke7 {[%clk 0:00:13]} 38. Rh7+ {[%clk 0:00:13]}  Ke6 {[%clk 0:00:13]} 39. Rb7 {[%clk 0:00:14]}  Rb3 {[%clk 0:00:13]} 40. f3 {[%clk 0:00:14]}  Kd6 {[%clk 0:00:13]} 41. Rf7 {[%clk 0:00:14]}  Ke6 {[%clk 0:00:13]} 42. Rc7 {[%clk 0:00:15]}  Kd6 {[%clk 0:00:10]} 43. Rg7 {[%clk 0:00:15]}  Rb4 {[%clk 0:00:10]} 44. Rg6 {[%clk 0:00:15]}  Ke7 {[%clk 0:00:10]} 45. Kf5 {[%clk 0:00:15]}  Rxa4 {[%clk 0:00:10]} 46. Rxf6 {[%clk 0:00:16]}  Rb4 {[%clk 0:00:09]} 47. g5 {[%clk 0:00:16]}  Rb1 {[%clk 0:00:09]} 48. g6 {[%clk 0:00:16]}  a4 {[%clk 0:00:08]} 49. g7 {[%clk 0:00:15]}  Rg1 {[%clk 0:00:07]} 50. Rxb6 {[%clk 0:00:15]}  Rxg7 {[%clk 0:00:06]} 51. Ra6 {[%clk 0:00:16]}  Rg3 {[%clk 0:00:05]} 52. Kf4 {[%clk 0:00:15]}  Rg2 {[%clk 0:00:04]} 53. Rxa4 {[%clk 0:00:15]}  Kf6 {[%clk 0:00:05]} 54. Ra6+ {[%clk 0:00:15]}  Kf7 {[%clk 0:00:05]} 55. Kf5 {[%clk 0:00:14]}  Rf2 {[%clk 0:00:06]} 56. f4 {[%clk 0:00:14]}  Rb2 {[%clk 0:00:07]} 57. Ra7+ {[%clk 0:00:15]}  Kf8 {[%clk 0:00:07]} 58. e5 {[%clk 0:00:16]}  Rb6 {[%clk 0:00:07]} 59. e6 {[%clk 0:00:16]}  Rb4 {[%clk 0:00:07]} 60. Ke5 {[%clk 0:00:15]}  Ra4 {[%clk 0:00:07]} 61. f5 {[%clk 0:00:16]}  Rxa7 {[%clk 0:00:07]} 62. f6 {[%clk 0:00:08]}  Ra6 {[%clk 0:00:06]} 63. Kd5 {[%clk 0:00:08]}  Ke8 {[%clk 0:00:06]} 64. Ke5 {[%clk 0:00:08]}  Ra2 {[%clk 0:00:06]} 65. Kf5 {[%clk 0:00:09]}  Kf8 {[%clk 0:00:05]} 66. Ke5 {[%clk 0:00:09]}  Rd2 {[%clk 0:00:06]} 67. Kf5 {[%clk 0:00:05]}  Re2 {[%clk 0:00:06]} 0-1


[Site "https://www.chess.com"]

[Event "Titled Tuesday Blitz July 25 Early 2023"]
[White "Zavgorodniy, Sergiy"]
[Black "Harsha Bharathakoti"]
[WhiteFideId "14110148"]
[BlackFideId "5078776"]
[WhiteElo "2596"]
[BlackElo "2873"]
[Result "0-1"]
[Round "9"]
[TimeControl "180+2"]
[Date "2023.07.25"]
[WhiteClock "0:00:03"]
[BlackClock "0:00:10"]
[Board "23"]

1. e4 {[%clk 0:03:00]}  g6 {[%clk 0:02:58]} 2. d4 {[%clk 0:03:00]}  Bg7 {[%clk 0:02:59]} 3. Nc3 {[%clk 0:02:58]}  d6 {[%clk 0:02:58]} 4. Nge2 {[%clk 0:02:57]}  Nf6 {[%clk 0:02:53]} 5. g3 {[%clk 0:02:57]}  Nc6 {[%clk 0:02:39]} 6. Bg2 {[%clk 0:02:55]}  O-O {[%clk 0:02:39]} 7. h3 {[%clk 0:02:55]}  e5 {[%clk 0:02:39]} 8. Be3 {[%clk 0:02:52]}  exd4 {[%clk 0:02:35]} 9. Nxd4 {[%clk 0:02:51]}  Re8 {[%clk 0:02:33]} 10. O-O {[%clk 0:02:49]}  Nd7 {[%clk 0:02:30]} 11. Qd2 {[%clk 0:02:34]}  Nde5 {[%clk 0:02:30]} 12. Nxc6 {[%clk 0:02:10]}  bxc6 {[%clk 0:02:31]} 13. Qe2 {[%clk 0:02:05]}  a5 {[%clk 0:02:29]} 14. Rfd1 {[%clk 0:02:03]}  Ba6 {[%clk 0:02:29]} 15. Qe1 {[%clk 0:02:03]}  Nc4 {[%clk 0:02:28]} 16. Bc1 {[%clk 0:01:47]}  Rb8 {[%clk 0:02:28]} 17. Bf1 {[%clk 0:01:37]}  Nxb2 {[%clk 0:02:18]} 18. Bxb2 {[%clk 0:01:06]}  Bxf1 {[%clk 0:02:17]} 19. Qxf1 {[%clk 0:01:04]}  Rxb2 {[%clk 0:02:16]} 20. Qd3 {[%clk 0:01:04]}  Qf6 {[%clk 0:02:10]} 21. Ne2 {[%clk 0:00:57]}  Qe6 {[%clk 0:02:05]} 22. Rab1 {[%clk 0:00:49]}  Qxe4 {[%clk 0:01:47]} 23. Nf4 {[%clk 0:00:47]}  Qxd3 {[%clk 0:01:44]} 24. Nxd3 {[%clk 0:00:45]}  Rxa2 {[%clk 0:01:41]} 25. Rb7 {[%clk 0:00:40]}  Rxc2 {[%clk 0:01:38]} 26. Rxc7 {[%clk 0:00:40]}  a4 {[%clk 0:01:36]} 27. Nb4 {[%clk 0:00:39]}  Rc4 {[%clk 0:01:06]} 28. Nxc6 {[%clk 0:00:38]}  Kh8 {[%clk 0:00:53]} 29. Rxd6 {[%clk 0:00:35]}  Be5 {[%clk 0:00:46]} 30. Re7 {[%clk 0:00:27]}  Rxe7 {[%clk 0:00:45]} 31. Rd8+ {[%clk 0:00:25]}  Kg7 {[%clk 0:00:46]} 32. Nxe7 {[%clk 0:00:24]}  Rc7 {[%clk 0:00:23]} 33. Rg8+ {[%clk 0:00:19]}  Kh6 {[%clk 0:00:22]} 34. Nd5 {[%clk 0:00:17]}  Ra7 {[%clk 0:00:21]} 35. Re8 {[%clk 0:00:16]}  a3 {[%clk 0:00:21]} 36. Nb4 {[%clk 0:00:15]}  Bd4 {[%clk 0:00:19]} 37. Re2 {[%clk 0:00:12]}  Bc5 {[%clk 0:00:19]} 38. Na2 {[%clk 0:00:12]}  Rb7 {[%clk 0:00:19]} 39. Rc2 {[%clk 0:00:08]}  Bd4 {[%clk 0:00:15]} 40. Rd2 {[%clk 0:00:06]}  Ba7 {[%clk 0:00:11]} 41. Rd3 {[%clk 0:00:05]}  Rb2 {[%clk 0:00:11]} 42. Rxa3 {[%clk 0:00:05]}  Bxf2+ {[%clk 0:00:12]} 43. Kf1 {[%clk 0:00:01]}  Bxg3 {[%clk 0:00:12]} 44. Rxg3 {[%clk 0:00:02]}  Rxa2 {[%clk 0:00:12]} 45. Rf3 {[%clk 0:00:02]}  f5 {[%clk 0:00:13]} 46. Rf4 {[%clk 0:00:03]}  Kg5 {[%clk 0:00:11]} 47. Rd4 {[%clk 0:00:03]}  Ra3 {[%clk 0:00:08]} 48. Kg2 {[%clk 0:00:03]}  Re3 {[%clk 0:00:08]} 49. Kh2 {[%clk 0:00:02]}  Kf6 {[%clk 0:00:08]} 50. Kg2 {[%clk 0:00:03]}  g5 {[%clk 0:00:05]} 51. Rd6+ {[%clk 0:00:02]}  Re6 {[%clk 0:00:05]} 52. Rd7 {[%clk 0:00:03]}  Kg6 {[%clk 0:00:06]} 53. Rc7 {[%clk 0:00:03]}  h5 {[%clk 0:00:06]} 54. Rc5 {[%clk 0:00:03]}  h4 {[%clk 0:00:05]} 55. Rc8 {[%clk 0:00:03]}  g4 {[%clk 0:00:03]} 56. hxg4 {[%clk 0:00:02]}  fxg4 {[%clk 0:00:04]} 57. Rg8+ {[%clk 0:00:03]}  Kf5 {[%clk 0:00:04]} 58. Rf8+ {[%clk 0:00:03]}  Rf6 {[%clk 0:00:04]} 59. Rh8 {[%clk 0:00:03]}  Kg5 {[%clk 0:00:04]} 60. Rg8+ {[%clk 0:00:03]}  Kf4 {[%clk 0:00:05]} 61. Ra8 {[%clk 0:00:03]}  h3+ {[%clk 0:00:04]} 62. Kh2 {[%clk 0:00:04]}  Re6 {[%clk 0:00:04]} 63. Rf8+ {[%clk 0:00:04]}  Kg5 {[%clk 0:00:03]} 64. Rg8+ {[%clk 0:00:04]}  Kf5 {[%clk 0:00:04]} 65. Rf8+ {[%clk 0:00:04]}  Rf6 {[%clk 0:00:04]} 66. Ra8 {[%clk 0:00:04]}  Kg5 {[%clk 0:00:05]} 67. Ra5+ {[%clk 0:00:04]}  Kh4 {[%clk 0:00:05]} 68. Ra4 {[%clk 0:00:04]}  Rf2+ {[%clk 0:00:05]} 69. Kg1 {[%clk 0:00:05]}  Rd2 {[%clk 0:00:06]} 70. Ra3 {[%clk 0:00:05]}  g3 {[%clk 0:00:04]} 71. Ra4+ {[%clk 0:00:05]}  Kg5 {[%clk 0:00:05]} 72. Ra5+ {[%clk 0:00:06]}  Kg4 {[%clk 0:00:05]} 73. Ra4+ {[%clk 0:00:06]}  Kf5 {[%clk 0:00:06]} 74. Ra5+ {[%clk 0:00:06]}  Kf4 {[%clk 0:00:05]} 75. Ra4+ {[%clk 0:00:06]}  Ke3 {[%clk 0:00:06]} 76. Ra1 {[%clk 0:00:07]}  Ke2 {[%clk 0:00:06]} 77. Kh1 {[%clk 0:00:04]}  Rd1+ {[%clk 0:00:06]} 78. Rxd1 {[%clk 0:00:04]}  Kxd1 {[%clk 0:00:07]} 79. Kg1 {[%clk 0:00:04]}  Ke2 {[%clk 0:00:08]} 80. Kh1 {[%clk 0:00:05]}  Kf3 {[%clk 0:00:08]} 81. Kg1 {[%clk 0:00:05]}  h2+ {[%clk 0:00:08]} 82. Kh1 {[%clk 0:00:05]}  g2+ {[%clk 0:00:09]} 83. Kxh2 {[%clk 0:00:03]}  Kf2 {[%clk 0:00:10]} 0-1


[Site "https://www.chess.com"]

[Event "Titled Tuesday Blitz July 25 Early 2023"]
[White "Kushagra Mohan"]
[Black "Agibileg, Uurtsaikh"]
[WhiteFideId "25033638"]
[BlackFideId "4901606"]
[WhiteElo "2864"]
[BlackElo "2634"]
[Result "0-1"]
[Round "9"]
[TimeControl "180+2"]
[Date "2023.07.25"]
[WhiteClock "0:01:17"]
[BlackClock "0:01:07"]
[Board "24"]

1. e4 {[%clk 0:03:00]}  c5 {[%clk 0:02:59]} 2. Nf3 {[%clk 0:03:00]}  e6 {[%clk 0:02:59]} 3. d4 {[%clk 0:03:00]}  cxd4 {[%clk 0:02:59]} 4. Nxd4 {[%clk 0:03:01]}  Nc6 {[%clk 0:02:59]} 5. Nc3 {[%clk 0:03:02]}  Qc7 {[%clk 0:02:58]} 6. Be3 {[%clk 0:03:01]}  a6 {[%clk 0:02:57]} 7. g4 {[%clk 0:03:02]}  Bb4 {[%clk 0:02:53]} 8. Nxc6 {[%clk 0:03:00]}  bxc6 {[%clk 0:02:53]} 9. Qd4 {[%clk 0:03:01]}  Be7 {[%clk 0:02:49]} 10. g5 {[%clk 0:02:58]}  e5 {[%clk 0:02:48]} 11. Qd2 {[%clk 0:02:56]}  Rb8 {[%clk 0:02:23]} 12. O-O-O {[%clk 0:02:50]}  Qb7 {[%clk 0:02:07]} 13. b3 {[%clk 0:02:46]}  Bb4 {[%clk 0:02:00]} 14. h4 {[%clk 0:02:38]}  d5 {[%clk 0:01:59]} 15. exd5 {[%clk 0:02:32]}  cxd5 {[%clk 0:02:00]} 16. Qxd5 {[%clk 0:02:31]}  Bg4 {[%clk 0:01:49]} 17. Qxe5+ {[%clk 0:02:24]}  Ne7 {[%clk 0:01:44]} 18. Bxa6 {[%clk 0:02:07]}  Bxc3 {[%clk 0:01:39]} 19. Qxc3 {[%clk 0:01:34]}  Qxa6 {[%clk 0:01:39]} 20. Qxg7 {[%clk 0:01:26]}  Rg8 {[%clk 0:01:23]} 21. Qe5 {[%clk 0:01:20]}  Rb5 {[%clk 0:01:09]} 22. Rd6 {[%clk 0:01:20]}  Qa3+ {[%clk 0:01:07]} 23. Qb2 {[%clk 0:01:17]}  Qxd6 {[%clk 0:01:07]} 0-1


[Site "https://www.chess.com"]

[Event "Titled Tuesday Blitz July 25 Early 2023"]
[White "Sychev, Klementy"]
[Black "Mishra, Manoj"]
[WhiteFideId "4114060"]
[BlackFideId "5006007"]
[WhiteElo "2853"]
[BlackElo "2245"]
[Result "1-0"]
[Round "9"]
[TimeControl "180+2"]
[Date "2023.07.25"]
[WhiteClock "0:00:23"]
[BlackClock "0:00:34"]
[Board "25"]

1. e4 {[%clk 0:03:00]}  d6 {[%clk 0:02:58]} 2. d4 {[%clk 0:03:00]}  Nf6 {[%clk 0:02:59]} 3. Nc3 {[%clk 0:03:00]}  Nbd7 {[%clk 0:02:57]} 4. Nf3 {[%clk 0:02:59]}  e5 {[%clk 0:02:57]} 5. Rg1 {[%clk 0:03:00]}  c6 {[%clk 0:02:47]} 6. g4 {[%clk 0:02:59]}  h6 {[%clk 0:02:45]} 7. Be3 {[%clk 0:02:57]}  Be7 {[%clk 0:02:43]} 8. a3 {[%clk 0:02:56]}  Qc7 {[%clk 0:02:35]} 9. g5 {[%clk 0:02:35]}  hxg5 {[%clk 0:02:32]} 10. Nxg5 {[%clk 0:02:36]}  Rxh2 {[%clk 0:02:13]} 11. Qf3 {[%clk 0:02:05]}  exd4 {[%clk 0:02:10]} 12. Bxd4 {[%clk 0:02:03]}  Ne5 {[%clk 0:02:10]} 13. Bxe5 {[%clk 0:02:02]}  dxe5 {[%clk 0:02:10]} 14. Bc4 {[%clk 0:02:01]}  Bc5 {[%clk 0:02:05]} 15. O-O-O {[%clk 0:01:33]}  Bxf2 {[%clk 0:01:41]} 16. Nxf7 {[%clk 0:00:49]}  Bxg1 {[%clk 0:01:16]} 17. Rxg1 {[%clk 0:00:49]}  Qxf7 {[%clk 0:01:12]} 18. Bxf7+ {[%clk 0:00:45]}  Kxf7 {[%clk 0:01:13]} 19. Qg3 {[%clk 0:00:40]}  Rh7 {[%clk 0:01:11]} 20. Qxe5 {[%clk 0:00:34]}  Bd7 {[%clk 0:01:04]} 21. Qc7 {[%clk 0:00:30]}  Re8 {[%clk 0:00:57]} 22. e5 {[%clk 0:00:27]}  Re7 {[%clk 0:00:35]} 23. exf6 {[%clk 0:00:25]}  gxf6 {[%clk 0:00:36]} 24. Qg3 {[%clk 0:00:24]}  Bf5 {[%clk 0:00:34]} 25. Qg8# {[%clk 0:00:23]} 1-0


[Site "https://www.chess.com"]

[Event "Titled Tuesday Blitz July 25 Early 2023"]
[White "Morefield, Jason"]
[Black "Kazakouski, Valery"]
[WhiteFideId "30920825"]
[BlackFideId "13507443"]
[WhiteElo "2746"]
[BlackElo "2862"]
[Result "1-0"]
[Round "9"]
[TimeControl "180+2"]
[Date "2023.07.25"]
[WhiteClock "0:00:05"]
[BlackClock "0:00:00"]
[Board "27"]

1. e4 {[%clk 0:03:00]}  c5 {[%clk 0:02:57]} 2. Nf3 {[%clk 0:03:01]}  a6 {[%clk 0:02:57]} 3. c4 {[%clk 0:03:00]}  Nc6 {[%clk 0:02:57]} 4. d4 {[%clk 0:02:59]}  cxd4 {[%clk 0:02:58]} 5. Nxd4 {[%clk 0:03:00]}  e5 {[%clk 0:02:59]} 6. Nf5 {[%clk 0:02:59]}  d6 {[%clk 0:02:59]} 7. Ne3 {[%clk 0:02:55]}  g6 {[%clk 0:02:56]} 8. Nc3 {[%clk 0:02:56]}  Bh6 {[%clk 0:02:56]} 9. Bd3 {[%clk 0:02:43]}  Be6 {[%clk 0:02:53]} 10. O-O {[%clk 0:02:42]}  Nf6 {[%clk 0:02:53]} 11. Ned5 {[%clk 0:02:31]}  Bxc1 {[%clk 0:02:51]} 12. Qxc1 {[%clk 0:02:32]}  O-O {[%clk 0:02:50]} 13. Qe3 {[%clk 0:02:19]}  Bxd5 {[%clk 0:02:48]} 14. exd5 {[%clk 0:02:07]}  Nb8 {[%clk 0:02:34]} 15. f4 {[%clk 0:02:02]}  Nbd7 {[%clk 0:02:34]} 16. fxe5 {[%clk 0:02:01]}  Nxe5 {[%clk 0:02:34]} 17. Be2 {[%clk 0:02:00]}  Rc8 {[%clk 0:02:31]} 18. b3 {[%clk 0:01:50]}  Kg7 {[%clk 0:02:24]} 19. Rf4 {[%clk 0:01:40]}  Nfd7 {[%clk 0:02:24]} 20. Raf1 {[%clk 0:01:38]}  f5 {[%clk 0:02:23]} 21. g3 {[%clk 0:01:23]}  Re8 {[%clk 0:02:19]} 22. Qd4 {[%clk 0:01:20]}  Qb6 {[%clk 0:02:16]} 23. Qxb6 {[%clk 0:01:18]}  Nxb6 {[%clk 0:02:17]} 24. Kg2 {[%clk 0:01:01]}  h5 {[%clk 0:02:16]} 25. h3 {[%clk 0:00:59]}  Ned7 {[%clk 0:01:30]} 26. g4 {[%clk 0:00:47]}  Nxd5 {[%clk 0:01:23]} 27. Nxd5 {[%clk 0:00:38]}  Rxe2+ {[%clk 0:01:22]} 28. Kg3 {[%clk 0:00:32]}  hxg4 {[%clk 0:00:44]} 29. hxg4 {[%clk 0:00:32]}  Rh8 {[%clk 0:00:44]} 30. gxf5 {[%clk 0:00:28]}  Reh2 {[%clk 0:00:37]} 31. fxg6 {[%clk 0:00:20]}  Ne5 {[%clk 0:00:38]} 32. Rf7+ {[%clk 0:00:09]}  Nxf7 {[%clk 0:00:37]} 33. Rxf7+ {[%clk 0:00:10]}  Kxg6 {[%clk 0:00:37]} 34. Rxb7 {[%clk 0:00:11]}  R8h3+ {[%clk 0:00:33]} 35. Kf4 {[%clk 0:00:11]}  Rxa2 {[%clk 0:00:34]} 36. Rb6 {[%clk 0:00:11]}  Kf7 {[%clk 0:00:29]} 37. Rxd6 {[%clk 0:00:10]}  Rxb3 {[%clk 0:00:30]} 38. c5 {[%clk 0:00:10]}  Rc2 {[%clk 0:00:18]} 39. c6 {[%clk 0:00:07]}  a5 {[%clk 0:00:06]} 40. c7 {[%clk 0:00:07]}  a4 {[%clk 0:00:05]} 41. Rd8 {[%clk 0:00:06]}  Rbc3 {[%clk 0:00:00]} 42. Nxc3 {[%clk 0:00:05]} 1-0


[Site "https://www.chess.com"]

[Event "Titled Tuesday Blitz July 25 Early 2023"]
[White "Kuznetsov, Felix"]
[Black "Kaasen, Tor Fredrik"]
[WhiteFideId "34147990"]
[BlackFideId "1516647"]
[WhiteElo "2725"]
[BlackElo "2817"]
[Result "0-1"]
[Round "9"]
[TimeControl "180+2"]
[Date "2023.07.25"]
[WhiteClock "0:01:07"]
[BlackClock "0:01:54"]
[Board "30"]

1. e4 {[%clk 0:02:56]}  e5 {[%clk 0:02:56]} 2. Nc3 {[%clk 0:02:52]}  Nc6 {[%clk 0:02:54]} 3. Bc4 {[%clk 0:02:52]}  Nf6 {[%clk 0:02:54]} 4. d3 {[%clk 0:02:52]}  Na5 {[%clk 0:02:54]} 5. Nge2 {[%clk 0:02:51]}  Bc5 {[%clk 0:02:53]} 6. h3 {[%clk 0:02:50]}  d6 {[%clk 0:02:52]} 7. Bg5 {[%clk 0:02:24]}  h6 {[%clk 0:02:48]} 8. Bh4 {[%clk 0:02:22]}  g5 {[%clk 0:02:46]} 9. Bg3 {[%clk 0:02:22]}  Nxc4 {[%clk 0:02:46]} 10. dxc4 {[%clk 0:02:22]}  Be6 {[%clk 0:02:44]} 11. Qd3 {[%clk 0:02:21]}  Nh5 {[%clk 0:02:38]} 12. f3 {[%clk 0:02:09]}  Nf4 {[%clk 0:02:28]} 13. Bxf4 {[%clk 0:01:51]}  gxf4 {[%clk 0:02:29]} 14. O-O-O {[%clk 0:01:51]}  Rg8 {[%clk 0:02:27]} 15. Rh2 {[%clk 0:01:41]}  a6 {[%clk 0:02:18]} 16. Na4 {[%clk 0:01:27]}  Be3+ {[%clk 0:02:16]} 17. Kb1 {[%clk 0:01:28]}  b5 {[%clk 0:01:54]} 18. cxb5 {[%clk 0:01:21]}  axb5 {[%clk 0:01:54]} 19. Nac3 {[%clk 0:01:07]}  Bc4 {[%clk 0:01:54]} 0-1


[Site "https://www.chess.com"]

[Event "Titled Tuesday Blitz July 25 Early 2023"]
[White "Samunenkov, Ihor"]
[Black "Nasuta, Grzegorz"]
[WhiteFideId "14187086"]
[BlackFideId "1141686"]
[WhiteElo "2796"]
[BlackElo "2708"]
[Result "0-1"]
[Round "9"]
[TimeControl "180+2"]
[Date "2023.07.25"]
[WhiteClock "0:00:00"]
[BlackClock "0:00:02"]
[Board "31"]

1. e4 {[%clk 0:03:00]}  c5 {[%clk 0:02:57]} 2. Nf3 {[%clk 0:03:01]}  d6 {[%clk 0:02:56]} 3. d4 {[%clk 0:03:01]}  cxd4 {[%clk 0:02:57]} 4. Nxd4 {[%clk 0:03:02]}  Nf6 {[%clk 0:02:57]} 5. Nc3 {[%clk 0:03:02]}  a6 {[%clk 0:02:58]} 6. h3 {[%clk 0:03:03]}  e6 {[%clk 0:02:51]} 7. g4 {[%clk 0:03:01]}  Nfd7 {[%clk 0:02:50]} 8. g5 {[%clk 0:02:59]}  b5 {[%clk 0:02:50]} 9. a3 {[%clk 0:02:59]}  Bb7 {[%clk 0:02:50]} 10. h4 {[%clk 0:02:58]}  Be7 {[%clk 0:02:48]} 11. Be3 {[%clk 0:02:54]}  Nc6 {[%clk 0:02:39]} 12. Rg1 {[%clk 0:02:51]}  O-O {[%clk 0:02:31]} 13. Qd2 {[%clk 0:02:45]}  Rc8 {[%clk 0:02:30]} 14. Be2 {[%clk 0:02:41]}  Nc5 {[%clk 0:01:23]} 15. f3 {[%clk 0:02:04]}  b4 {[%clk 0:01:20]} 16. axb4 {[%clk 0:01:03]}  Nxb4 {[%clk 0:01:21]} 17. h5 {[%clk 0:01:03]}  g6 {[%clk 0:00:32]} 18. hxg6 {[%clk 0:00:53]}  hxg6 {[%clk 0:00:22]} 19. Rh1 {[%clk 0:00:42]}  Kg7 {[%clk 0:00:18]} 20. Nb3 {[%clk 0:00:30]}  Nxb3 {[%clk 0:00:16]} 21. cxb3 {[%clk 0:00:31]}  e5 {[%clk 0:00:13]} 22. Bc4 {[%clk 0:00:28]}  Rh8 {[%clk 0:00:12]} 23. Rh6 {[%clk 0:00:11]}  Rxh6 {[%clk 0:00:11]} 24. gxh6+ {[%clk 0:00:11]}  Kh7 {[%clk 0:00:09]} 25. Bxf7 {[%clk 0:00:11]}  Bh4+ {[%clk 0:00:08]} 26. Ke2 {[%clk 0:00:09]}  Qf6 {[%clk 0:00:05]} 27. Bc4 {[%clk 0:00:07]}  Rf8 {[%clk 0:00:05]} 28. Rf1 {[%clk 0:00:08]}  Bg3 {[%clk 0:00:01]} 29. Nd5 {[%clk 0:00:07]}  Nxd5 {[%clk 0:00:01]} 30. Bxd5 {[%clk 0:00:08]}  Bxd5 {[%clk 0:00:02]} 31. Qxd5 {[%clk 0:00:09]}  Bf4 {[%clk 0:00:02]} 32. Bb6 {[%clk 0:00:04]}  Bxh6 {[%clk 0:00:02]} 33. Bc7 {[%clk 0:00:04]}  Rc8 {[%clk 0:00:02]} 34. Qxd6 {[%clk 0:00:02]}  Qxd6 {[%clk 0:00:02]} 35. Bxd6 {[%clk 0:00:03]}  Rc2+ {[%clk 0:00:02]} 36. Ke1 {[%clk 0:00:04]}  Rxb2 {[%clk 0:00:02]} 37. Bxe5 {[%clk 0:00:02]}  Rxb3 {[%clk 0:00:02]} 38. Kf2 {[%clk 0:00:00]}  g5 {[%clk 0:00:02]} 0-1


[Site "https://www.chess.com"]

[Event "Titled Tuesday Blitz July 25 Early 2023"]
[White "Gubajdullin, Alexei"]
[Black "Ibarra Jerez, Jose Carlos"]
[WhiteFideId "4141202"]
[BlackFideId "2226332"]
[WhiteElo "2689"]
[BlackElo "2917"]
[Result "0-1"]
[Round "9"]
[TimeControl "180+2"]
[Date "2023.07.25"]
[WhiteClock "0:01:16"]
[BlackClock "0:01:26"]
[Board "37"]

1. d4 {[%clk 0:02:44]}  Nf6 {[%clk 0:02:58]} 2. Nf3 {[%clk 0:02:43]}  g6 {[%clk 0:02:57]} 3. Bf4 {[%clk 0:02:42]}  d6 {[%clk 0:02:55]} 4. e3 {[%clk 0:02:42]}  Bg7 {[%clk 0:02:56]} 5. Be2 {[%clk 0:02:42]}  O-O {[%clk 0:02:55]} 6. O-O {[%clk 0:02:43]}  c5 {[%clk 0:02:52]} 7. c3 {[%clk 0:02:42]}  Be6 {[%clk 0:02:51]} 8. Nbd2 {[%clk 0:02:40]}  Qb6 {[%clk 0:02:50]} 9. Qc1 {[%clk 0:02:38]}  Nc6 {[%clk 0:02:50]} 10. Nc4 {[%clk 0:02:38]}  Qa6 {[%clk 0:02:50]} 11. Nfd2 {[%clk 0:02:29]}  d5 {[%clk 0:02:49]} 12. b3 {[%clk 0:02:12]}  cxd4 {[%clk 0:02:42]} 13. exd4 {[%clk 0:02:12]}  dxc4 {[%clk 0:02:35]} 14. bxc4 {[%clk 0:02:12]}  Na5 {[%clk 0:02:32]} 15. Qa3 {[%clk 0:02:07]}  Rac8 {[%clk 0:02:21]} 16. Qxe7 {[%clk 0:01:59]}  Nxc4 {[%clk 0:02:15]} 17. Qb4 {[%clk 0:01:54]}  Nd5 {[%clk 0:02:11]} 18. Bxc4 {[%clk 0:01:49]}  Nxb4 {[%clk 0:02:02]} 19. Bxa6 {[%clk 0:01:49]}  Nxa6 {[%clk 0:02:03]} 20. Ne4 {[%clk 0:01:43]}  Bd5 {[%clk 0:01:56]} 21. f3 {[%clk 0:01:40]}  Bxe4 {[%clk 0:01:54]} 22. fxe4 {[%clk 0:01:39]}  Rxc3 {[%clk 0:01:55]} 23. d5 {[%clk 0:01:40]}  Nc5 {[%clk 0:01:49]} 24. Rae1 {[%clk 0:01:38]}  Nd3 {[%clk 0:01:48]} 25. Rd1 {[%clk 0:01:33]}  Bd4+ {[%clk 0:01:46]} 26. Kh1 {[%clk 0:01:32]}  Nf2+ {[%clk 0:01:47]} 27. Rxf2 {[%clk 0:01:31]}  Bxf2 {[%clk 0:01:48]} 28. d6 {[%clk 0:01:31]}  Bb6 {[%clk 0:01:42]} 29. d7 {[%clk 0:01:30]}  Rc4 {[%clk 0:01:41]} 30. Bd6 {[%clk 0:01:27]}  Rd8 {[%clk 0:01:36]} 31. Be7 {[%clk 0:01:16]}  Rxd7 {[%clk 0:01:26]} 0-1


[Site "https://www.chess.com"]